fUSD/lending_fUSD_20251126
["ID","MTS","AMOUNT","RATE_DAILY","PERIOD"]
[394948814,1764190237676,-166.66,0.00016333,2]
[394948815,1764190237687,-430.87,0.00016381,2]
[394948816,1764190237696,-1000.0,0.00016395,2]
[394948817,1764190237705,-362.52238698,0.00016396,2]
[394948818,1764190237714,-254.0,0.00016461,2]
[394948819,1764190237723,-362.52238698,0.00016522,2]
[394948820,1764190237732,-200.0,0.00016523,2]
[394948821,1764190237750,-382.0,0.00016641,2]
[394948822,1764190237761,-362.52238698,0.00016648,2]
[394948823,1764190237771,-150.0,0.00016656,2]
[394948824,1764190237780,-166.66,0.00016656,2]
[394948825,1764190237790,-550.0,0.00016672,2]
[394948826,1764190237799,-23060.88227472,0.00016673,2]
[394948827,1764190237808,-464.16126538,0.00016673,2]
[394948828,1764190237818,-942.0888298,0.00016673,2]
[394948829,1764190237827,-23060.88227468,0.00016698,2]
[394948830,1764190237836,-167.37962358,0.00016699,2]
[394948831,1764190237846,-500.0,0.00016722,2]
[394948832,1764190237855,-500.0,0.00016722,2]
[394948833,1764190237864,-500.0,0.00016722,2]
[394948834,1764190237873,-500.0,0.00016722,2]
[394948836,1764190237883,-500.0,0.00016722,2]
[394948838,1764190237893,-500.0,0.00016722,2]
[394948840,1764190237902,-500.0,0.00016722,2]
[394948841,1764190237912,-491.43382697,0.00016722,2]
[394948842,1764190237923,-500.0,0.00016722,2]
[394948843,1764190237933,-500.0,0.00016722,2]
[394948844,1764190237943,-500.0,0.00016722,2]
[394948845,1764190237952,-185.86350863,0.00016722,2]
[394948846,1764190237961,-500.0,0.00016722,2]
[394948847,1764190237971,-500.0,0.00016722,2]
[394948848,1764190237980,-500.0,0.00016722,2]
[394948849,1764190237989,-500.0,0.00016722,2]
[394948850,1764190237999,-500.0,0.00016722,2]
[394948851,1764190238008,-500.0,0.00016722,2]
[394948852,1764190238018,-500.0,0.00016722,2]
[394948853,1764190238027,-500.0,0.00016722,2]
[394948854,1764190238036,-500.0,0.00016722,2]
[394948855,1764190238046,-500.0,0.00016722,2]
[394948856,1764190238056,-500.0,0.00016722,2]
[394948857,1764190238066,-500.0,0.00016722,2]
[394948858,1764190238079,-500.0,0.00016722,2]
[394948859,1764190238089,-500.0,0.00016722,2]
[394948860,1764190238099,-500.0,0.00016722,2]
[394948861,1764190238108,-500.0,0.00016722,2]
[394948862,1764190238118,-500.0,0.00016722,2]
[394948863,1764190238128,-417.51440867,0.00016722,2]
[394948864,1764190238137,-500.0,0.00016722,2]
[394948865,1764190238148,-500.0,0.00016722,2]
[394948866,1764190238158,-500.0,0.00016722,2]
[394948867,1764190238168,-500.0,0.00016722,2]
[394948868,1764190238178,-500.0,0.00016722,2]
[394948869,1764190238189,-500.0,0.00016722,2]
[394948870,1764190238199,-23060.88227468,0.00016723,2]
[394948871,1764190238210,-1100.98,0.00016748,2]
[394948872,1764190238220,-23060.88227468,0.00016749,2]
[394948873,1764190238230,-151.0,0.0001677,2]
[394948874,1764190238240,-500.0,0.00016772,2]
[394948875,1764190238251,-283.47110321,0.00016772,2]
[394948876,1764190238261,-414.24104404,0.00016772,2]
[394948877,1764190238271,-2981.2772,0.00016773,2]
[394948878,1764190238281,-235.1519,0.00016773,2]
[394948879,1764190238295,-280.6993,0.00016773,2]
[394948880,1764190238305,-760000.0,0.00016773,2]
[394948881,1764190238315,-1436.8259,0.00016773,2]
[394948882,1764190238325,-88507.5826,0.00016773,2]
[394948883,1764190238335,-23060.88227468,0.00016774,2]
[394948884,1764190238346,-942.08882979,0.00016787,2]
[394948885,1764190238355,-23060.88227468,0.00016799,2]
[394948886,1764190238366,-1282.12401334,0.000168,2]
[394948887,1764190238375,-308.8231561,0.00016816,2]
[394948888,1764190238385,-250.0,0.00016816,2]
[394948889,1764190238395,-23060.88227468,0.00016824,2]
[394948890,1764190238405,-464.16126535,0.00016848,2]
[394948891,1764190238414,-23060.88227468,0.0001685,2]
[394948892,1764190238424,-2500.0,0.00016859,2]
[394948893,1764190238434,-500.0,0.00016861,2]
[394948894,1764190238446,-500.0,0.00016861,2]
[394948895,1764190238456,-500.0,0.00016861,2]
[394948896,1764190238466,-500.0,0.00016861,2]
[394948897,1764190238475,-500.0,0.00016861,2]
[394948898,1764190238486,-500.0,0.00016861,2]
[394948899,1764190238496,-500.0,0.00016861,2]
[394948900,1764190238505,-500.0,0.00016861,2]
[394948901,1764190238515,-500.0,0.00016861,2]
[394948902,1764190238525,-500.0,0.00016861,2]
[394948903,1764190238535,-500.0,0.00016861,2]
[394948904,1764190238545,-500.0,0.00016861,2]
[394948905,1764190238555,-613.09788002,0.00016861,2]
[394948906,1764190238566,-500.0,0.00016861,2]
[394948907,1764190238576,-500.0,0.00016861,2]
[394948908,1764190238586,-500.0,0.00016861,2]
[394948909,1764190238596,-500.0,0.00016861,2]
[394948910,1764190238606,-500.0,0.00016861,2]
[394948911,1764190238616,-500.0,0.00016861,2]
[394948912,1764190238626,-501.64742584,0.00016873,2]
[394948913,1764190238636,-500.0,0.00016873,2]
[394948914,1764190238646,-500.0,0.00016873,2]
[394948915,1764190238655,-500.0,0.00016873,2]
[394948916,1764190238665,-500.0,0.00016873,2]
[394948917,1764190238675,-162.26120366,0.00016873,2]
[394948918,1764190238685,-500.0,0.00016873,2]
[394948919,1764190238695,-500.0,0.00016873,2]
[394948920,1764190238705,-500.0,0.00016873,2]
[394948921,1764190238716,-500.0,0.00016873,2]
[394948922,1764190238726,-304.69175567,0.00016873,2]
[394948923,1764190238735,-501.06358284,0.00016873,2]
[394948924,1764190238746,-500.0,0.00016873,2]
[394948925,1764190238757,-23060.88227468,0.00016875,2]
[394948926,1764190238767,-218.8231771,0.00016888,2]
[394948927,1764190238777,-2644.9018,0.000169,2]
[394948928,1764190238787,-21666.1952,0.000169,2]
[394948929,1764190238797,-1000.0,0.000169,2]
[394948930,1764190238807,-1000.0,0.000169,2]
[394948931,1764190238816,-23060.88227468,0.000169,2]
[394948932,1764190238826,-898.05683387,0.000169,2]
[394948933,1764190238836,-225.71162639,0.000169,2]
[394948934,1764190238846,-10000.0,0.000169,2]
[394948935,1764190238860,-942.08882979,0.000169,2]
[394948936,1764190238870,-1282.12401326,0.00016901,2]
[394948937,1764190238880,-1204.48060954,0.00016949,2]
[394948938,1764190238889,-500.0,0.00016958,2]
[394948939,1764190238899,-500.0,0.00016958,2]
[394948940,1764190238909,-500.0,0.00016958,2]
[394948941,1764190238918,-500.0,0.00016958,2]
[394948942,1764190239132,-500.0,0.00016958,2]
[394948943,1764190239145,-500.0,0.00016958,2]
[394948944,1764190239156,-500.0,0.00016958,2]
[394948945,1764190239170,-55642.0,0.00016959,2]
[394948946,1764190239180,-273.0,0.0001696,2]
[394948947,1764190239190,-500.0,0.00016973,2]
[394948948,1764190239199,-237.01110095,0.00016973,2]
[394948949,1764190239210,-500.0,0.00016973,2]
[394948950,1764190239220,-500.0,0.00016973,2]
[394948951,1764190239230,-500.0,0.00016973,2]
[394948952,1764190239240,-166.66,0.0001698,2]
[394948953,1764190239250,-150.0,0.00016986,2]
[394948954,1764190239260,-1204.48060954,0.0001699,2]
[394948955,1764190239270,-151.0,0.00016997,2]
[394948956,1764190239280,-500.0,0.00016998,2]
[394948957,1764190239290,-1839.11,0.00016998,2]
[394948958,1764190239300,-10622.70211054,0.00016999,2]
[394948959,1764190239309,-500.0,0.00016999,2]
[394948960,1764190239318,-500.0,0.00016999,2]
[394948961,1764190239328,-500.0,0.00016999,2]
[394948962,1764190239337,-500.0,0.00016999,2]
[394948963,1764190239347,-500.0,0.00016999,2]
[394948964,1764190239356,-500.0,0.00016999,2]
[394948965,1764190239365,-500.0,0.00016999,2]
[394948966,1764190239375,-1304.90558406,0.00016999,5]
[394948967,1764190239384,-250.67117171,0.00016999,2]
[394948968,1764190239393,-2227.79207945,0.00016999,2]
[394948969,1764190239402,-365.32199999,0.00016999,2]
[394948970,1764190239413,-500.0,0.00016999,2]
[394948971,1764190239422,-500.0,0.00016999,2]
[394948972,1764190239431,-500.0,0.00016999,2]
[394948973,1764190239441,-504.41433672,0.00016999,2]
[394948974,1764190239450,-500.0,0.00016999,2]
[394948975,1764190239459,-500.0,0.00016999,2]
[394948976,1764190239468,-500.0,0.00016999,2]
[394948977,1764190239477,-500.0,0.00016999,2]
[394948978,1764190239487,-500.0,0.00016999,2]
[394948979,1764190239496,-500.0,0.00016999,2]
[394948980,1764190239506,-500.0,0.00016999,2]
[394948981,1764190239515,-1839.11,0.00016999,2]
[394948982,1764190239524,-1839.11,0.00016999,2]
[394948983,1764190239536,-1839.11,0.00016999,2]
[394948984,1764190239545,-1839.11,0.00016999,2]
[394948985,1764190239557,-1839.11,0.00016999,2]
[394948986,1764190239566,-1839.11,0.00016999,2]
[394948987,1764190239575,-1839.11,0.00016999,2]
[394948988,1764190239584,-1839.11,0.00016999,2]
[394948989,1764190239594,-1839.11,0.00016999,2]
[394948991,1764190239603,-1839.11,0.00016999,2]
[394948992,1764190239612,-1839.11,0.00016999,2]
[394948993,1764190239621,-1839.11,0.00016999,2]
[394948995,1764190239630,-1839.11,0.00016999,2]
[394948996,1764190239639,-1839.11,0.00016999,2]
[394948997,1764190239648,-1839.11,0.00016999,2]
[394948998,1764190239658,-1839.11,0.00016999,2]
[394948999,1764190239667,-1839.11,0.00016999,2]
[394949000,1764190239676,-1839.11,0.00016999,2]
[394949001,1764190239685,-500.0,0.00016999,2]
[394949002,1764190239694,-500.0,0.00016999,2]
[394949003,1764190239704,-4474684.50051959,0.00017,2]
[394949004,1764190239714,-161.55520848,0.00017,2]
[394949005,1764190239722,-151.0,0.00017,2]
[394949006,1764190239732,-461.6384,0.00017,2]
[394949007,1764190239741,-1282.12401326,0.00017002,2]
[394949008,1764190239750,-1100.98,0.00017022,2]
[394949009,1764190239759,-464.16126535,0.00017024,2]
[394949010,1764190239769,-1282.12401326,0.00017103,2]
[394949011,1764190239778,-163.02,0.00017103,2]
[394949012,1764190239787,-464.16126535,0.00017199,2]
[394949013,1764190239796,-1282.12401326,0.00017204,2]
[394949014,1764190239805,-420.0,0.00017236,2]
[394949015,1764190239814,-1839.11,0.0001727,2]
[394949016,1764190239823,-1839.11,0.0001727,2]
[394949017,1764190239835,-1839.11,0.0001727,2]
[394949018,1764190239844,-1839.11,0.0001727,2]
[394949019,1764190239853,-1839.22108833,0.0001727,2]
[394949020,1764190239863,-1100.98,0.00017296,2]
[394949021,1764190239872,-1282.12401326,0.00017305,2]
[394949022,1764190239881,-250.0,0.00017312,2]
[394949023,1764190239891,-1680.0,0.00017323,2]
[394949024,1764190239900,-300.0,0.00017337,2]
[394949025,1764190239909,-464.16126535,0.00017374,2]
[394949026,1764190239918,-1282.12401326,0.00017406,2]
[394949027,1764190239927,-213.52637632,0.00017421,2]
[394949028,1764190239939,-1011.01960502,0.00017421,2]
[394949029,1764190239948,-500.0,0.00017421,2]
[394949030,1764190239957,-1000.0,0.00017421,2]
[394949031,1764190239968,-1000.0,0.00017421,2]
[394949032,1764190239978,-500.0,0.00017421,2]
[394949033,1764190239987,-1282.12401326,0.00017507,2]
[394949034,1764190239997,-1000.0,0.00017521,2]
[394949035,1764190240007,-512.43353086,0.00017521,2]
[394949036,1764190240016,-500.0,0.00017521,2]
[394949037,1764190240026,-464.16126535,0.00017549,2]
[394949038,1764190240035,-939.0,0.00017567,2]
[394949039,1764190240045,-1100.98,0.0001757,2]
[394949040,1764190240054,-1282.12401326,0.00017608,2]
[394949041,1764190240063,-1282.12401326,0.00017709,2]
[394949043,1764190240076,-464.16126535,0.00017725,2]
[394949045,1764190240086,-500.0,0.00017773,2]
[394949047,1764190240095,-500.0,0.00017773,2]
[394949048,1764190240104,-500.53142586,0.00017773,2]
[394949049,1764190240115,-560.0,0.00017789,2]
[394949050,1764190240124,-163.02,0.00017809,2]
[394949052,1764190240133,-1100.98,0.00017844,2]
[394949053,1764190240143,-151.99063236,0.00017867,2]
[394949054,1764190240154,-150.0,0.00017867,2]
[394949055,1764190240163,-150.0,0.00017867,2]
[394949056,1764190240172,-268.2412023,0.00017867,2]
[394949057,1764190240182,-150.0,0.00017867,2]
[394949058,1764190240192,-150.0,0.00017867,2]
[394949059,1764190240201,-150.36940568,0.00017867,2]
[394949060,1764190240211,-150.0,0.00017867,2]
[394949062,1764190240220,-150.0,0.00017867,2]
[394949064,1764190240229,-464.16126535,0.000179,2]
[394949065,1764190240238,-1500.0,0.00017968,2]
[394949067,1764190240247,-949.67502759,0.00017968,2]
[394949069,1764190240256,-500.0,0.00017973,2]
[394949070,1764190240266,-500.0,0.00017973,2]
[394949071,1764190240275,-504.56072221,0.00017973,2]
[394949072,1764190240286,-500.0,0.00017973,2]
[394949073,1764190240296,-500.0,0.00017973,2]
[394949075,1764190240305,-500.0,0.00017973,2]
[394949076,1764190240314,-500.0,0.00017973,2]
[394949077,1764190240323,-567.54247818,0.00017973,2]
[394949078,1764190240335,-161.55616057,0.00017973,2]
[394949079,1764190240344,-335.09506367,0.00017973,2]
[394949080,1764190240354,-500.0,0.00017973,2]
[394949081,1764190240363,-500.0,0.00017973,2]
[394949082,1764190240371,-500.0,0.00017973,2]
[394949083,1764190240381,-500.0,0.00017973,2]
[394949084,1764190240390,-500.0,0.00017973,2]
[394949085,1764190240400,-500.0,0.00017973,2]
[394949086,1764190240410,-500.0,0.00017973,2]
[394949087,1764190240420,-500.0,0.00017973,2]
[394949088,1764190240430,-500.0,0.00017973,2]
[394949089,1764190240439,-298.00508969,0.00017973,2]
[394949090,1764190240449,-500.0,0.00017973,2]
[394949091,1764190240459,-500.0,0.00017973,2]
[394949092,1764190240468,-501.10677799,0.00017973,2]
[394949093,1764190240477,-500.0,0.00017973,2]
[394949094,1764190240486,-500.0,0.00017973,2]
[394949095,1764190240496,-1204.48060954,0.0001799,2]
[394949096,1764190240513,-250.0,0.00017994,2]
[394949097,1764190240522,-151.0,0.00017997,2]
[394949098,1764190240531,-4885.9876492,0.00017999,2]
[394949099,1764190240540,-1064.9813538,0.00017999,2]
[394949100,1764190240550,-300.0,0.00017999,2]
[394949101,1764190240562,-300.0,0.00017999,2]
[394949102,1764190240571,-300.0,0.00017999,2]
[394949103,1764190240581,-157.86450969,0.00018,7]
[394949104,1764190240590,-1974270.07789055,0.00018,2]
[394949105,1764190240634,-501.17903623,0.00018,2]
[394949106,1764190240644,-3106.41718593,0.00018,2]
[394949107,1764190240670,-5826721.42950999,0.00018,2]
[394949108,1764190240681,-1729.9999,0.00018,2]
[394949109,1764190240691,-1866.50913973,0.00018,2]
[394949110,1764190240703,-1666.19427383,0.00018,2]
[394949114,1764190244164,-1600.04106389,0.00018,2]
[394949115,1764190244175,-3409.7438198,0.00018,2]
[394949116,1764190244188,-44444.0,0.00018,2]
[394949117,1764190244199,-276.00947847,0.00018,2]
[394949132,1764190245845,-104272.41546715,0.00018,2]
[394949133,1764190245856,-1430.40028745,0.00018,2]
[394949134,1764190245936,-4462.45256,0.00018,2]
[394949135,1764190245947,-695.555,0.00018,2]
[394949136,1764190246046,-254794.43888492,0.00018,2]
[394949138,1764190246057,-780837.45601508,0.00018,2]
[394949140,1764190246069,-291000.0,0.00018,2]
[394949141,1764190246085,-521.51023734,0.00018,2]
[394949142,1764190246096,-406.59937078,0.00018,2]
[394949284,1764191321478,154.47,0.00013699,2]
[394949289,1764191431864,-150.0,0.000162,2]
[394949290,1764191431874,-150.00000001,0.000162,2]
[394949291,1764191431883,-151.69825372,0.000162,2]
[394949292,1764191431892,-150.0,0.000162,2]
[394949293,1764191431902,-150.0,0.000162,2]
[394949294,1764191431912,-150.0,0.000162,2]
[394949295,1764191431921,-150.0,0.000162,2]
[394949296,1764191431930,-250.0,0.00016285,2]
[394949297,1764191431939,-322.64,0.0001637,2]
[394949298,1764191431949,-1200.0,0.00016378,2]
[394949299,1764191431958,-250.0,0.00016379,2]
[394949300,1764191431967,-300.0,0.00016437,2]
[394949301,1764191431976,-1274.36376773,0.00016438,2]
[394949302,1764191431988,-518.79707022,0.00016438,2]
[394949304,1764191437853,-923.68916205,0.00016438,2]
[394949305,1764191437863,-466.7998894,0.00016438,2]
[394949306,1764191437873,-3605.66,0.00016502,2]
[394949307,1764191437882,-550.0,0.00016572,2]
[394949308,1764191437892,-567.06270597,0.00016573,2]
[394949309,1764191437902,-419.0050136,0.00016573,2]
[394949310,1764191437911,-500.0,0.00016573,2]
[394949311,1764191437921,-500.0,0.00016573,2]
[394949312,1764191437930,-512.43353086,0.00016573,2]
[394949313,1764191437939,-565.64448651,0.00016573,2]
[394949314,1764191437948,-500.96249559,0.00016573,2]
[394949315,1764191437957,-500.0,0.00016573,2]
[394949316,1764191437967,-500.0,0.00016573,2]
[394949317,1764191437976,-964.801,0.00016573,2]
[394949318,1764191437986,-904.56202065,0.00016573,2]
[394949319,1764191437995,-348.12094903,0.00016573,2]
[394949320,1764191438005,-1009.23,0.00016588,2]
[394949321,1764191438014,-151.0,0.00016588,2]
[394949322,1764191438024,-151.0,0.00016588,2]
[394949323,1764191438034,-151.0,0.00016588,2]
[394949324,1764191438043,-151.0,0.00016588,2]
[394949325,1764191438053,-151.0,0.00016588,2]
[394949326,1764191438064,-151.0,0.00016588,2]
[394949327,1764191438073,-151.0,0.00016588,2]
[394949328,1764191438083,-151.0,0.00016588,2]
[394949329,1764191438092,-151.0,0.00016588,2]
[394949330,1764191438102,-151.0,0.00016588,2]
[394949331,1764191438111,-151.0,0.00016588,2]
[394949332,1764191438120,-151.0,0.00016588,2]
[394949333,1764191438130,-151.0,0.00016588,2]
[394949334,1764191438139,-151.0,0.00016588,2]
[394949335,1764191438149,-151.0,0.00016588,2]
[394949336,1764191438158,-151.0,0.00016588,2]
[394949337,1764191438168,-151.0,0.00016588,2]
[394949338,1764191438178,-151.0,0.00016588,2]
[394949339,1764191438187,-151.0,0.00016588,2]
[394949341,1764191438196,-500.0,0.00016598,2]
[394949343,1764191438206,-500.0,0.00016598,2]
[394949345,1764191438215,-500.0,0.00016598,2]
[394949347,1764191438225,-519.4667205,0.00016598,2]
[394949349,1764191438234,-500.0,0.00016598,2]
[394949350,1764191438243,-529.1,0.00016598,2]
[394949351,1764191438254,-500.0,0.00016598,2]
[394949352,1764191438264,-547.40314688,0.00016598,2]
[394949353,1764191438274,-500.0,0.00016598,2]
[394949354,1764191438283,-500.0,0.00016598,2]
[394949355,1764191438293,-500.0,0.00016598,2]
[394949356,1764191438302,-500.0,0.00016598,2]
[394949357,1764191438312,-500.0,0.00016598,2]
[394949358,1764191438321,-500.0,0.00016598,2]
[394949359,1764191438331,-500.0,0.00016598,2]
[394949360,1764191438340,-500.0,0.00016598,2]
[394949361,1764191438350,-500.0,0.00016598,2]
[394949362,1764191438360,-500.0,0.00016598,2]
[394949363,1764191438369,-500.0,0.00016598,2]
[394949364,1764191438378,-500.0,0.00016598,2]
[394949365,1764191438388,-500.0,0.00016598,2]
[394949366,1764191438397,-500.0,0.00016598,2]
[394949367,1764191438407,-500.0,0.00016598,2]
[394949368,1764191438418,-500.0,0.00016598,2]
[394949369,1764191438432,-500.0,0.00016598,2]
[394949370,1764191438442,-1000.0,0.00016673,2]
[394949371,1764191438451,-191.53,0.00016712,2]
[394949372,1764191438463,-500.0,0.00016782,2]
[394949373,1764191438473,-500.0,0.00016782,2]
[394949374,1764191438482,-205.24650132,0.00016782,2]
[394949375,1764191438493,-505.9064321,0.00016782,2]
[394949376,1764191438504,-1009.23,0.00016862,2]
[394949377,1764191438514,-500.0,0.00016958,2]
[394949378,1764191438524,-384.83885913,0.00016976,2]
[394949379,1764191438533,-241.71931971,0.00016976,2]
[394949380,1764191438543,-559.9560495,0.00016999,2]
[394949381,1764191438552,-250.0,0.00017,2]
[394949382,1764191438562,-904.56202058,0.0001702,2]
[394949383,1764191438572,-191.433,0.00017076,2]
[394949384,1764191438581,-4039.4,0.00017098,2]
[394949385,1764191438591,-500.0,0.00017121,2]
[394949386,1764191438600,-1000.0,0.00017121,2]
[394949387,1764191438610,-213.52637632,0.00017121,2]
[394949388,1764191438620,-1000.0,0.00017121,2]
[394949389,1764191438630,-1009.23,0.00017136,2]
[394949390,1764191438640,-150.0,0.00017174,2]
[394949391,1764191438649,-500.0,0.00017367,2]
[394949392,1764191438659,-500.0,0.00017367,2]
[394949393,1764191438669,-500.0,0.00017367,2]
[394949394,1764191438678,-500.0,0.00017367,2]
[394949395,1764191438688,-500.0,0.00017367,2]
[394949396,1764191438698,-500.0,0.00017367,2]
[394949397,1764191438707,-1009.23,0.0001741,2]
[394949398,1764191438717,-904.56202058,0.00017468,2]
[394949399,1764191438727,-1500.0,0.00017668,2]
[394949400,1764191438736,-887.42218199,0.00017668,2]
[394949401,1764191438746,-443.0,0.00017682,2]
[394949402,1764191438755,-300.0,0.00017682,2]
[394949403,1764191438765,-1009.23,0.00017684,2]
[394949404,1764191438774,-250.0,0.0001782,2]
[394949405,1764191438784,-300.0,0.0001782,2]
[394949406,1764191438794,-216.0,0.00017895,2]
[394949407,1764191438803,-5026.1767,0.000179,2]
[394949408,1764191438812,-179.78326477,0.000179,2]
[394949409,1764191438822,-598.70455592,0.000179,2]
[394949410,1764191438831,-904.56202058,0.00017915,2]
[394949411,1764191438841,-1000.0,0.00017915,2]
[394949412,1764191438850,-406.97735465,0.00017915,2]
[394949413,1764191438859,-1000.0,0.00017915,2]
[394949414,1764191438869,-303.22782121,0.00017915,2]
[394949415,1764191438879,-511.01960502,0.00017915,2]
[394949416,1764191438888,-1000.0,0.00017915,2]
[394949417,1764191438898,-1009.23,0.00017958,2]
[394949418,1764191438907,-420.0,0.00017964,2]
[394949419,1764191438917,-500.0,0.00017973,2]
[394949420,1764191438927,-501.07543735,0.00017973,2]
[394949421,1764191438937,-500.0,0.00017973,2]
[394949422,1764191438946,-503.32747912,0.00017973,2]
[394949423,1764191438956,-500.0,0.00017973,2]
[394949424,1764191438966,-502.92078827,0.00017973,2]
[394949425,1764191438975,-500.0,0.00017973,2]
[394949426,1764191438985,-500.0,0.00017973,2]
[394949427,1764191438995,-500.0,0.00017973,2]
[394949428,1764191439005,-500.0,0.00017973,2]
[394949429,1764191439015,-500.0,0.00017973,2]
[394949430,1764191439024,-502.20492296,0.00017973,2]
[394949431,1764191439034,-500.0,0.00017973,2]
[394949432,1764191439043,-500.0,0.00017973,2]
[394949433,1764191439052,-500.0,0.00017973,2]
[394949434,1764191439063,-500.0,0.00017973,2]
[394949435,1764191439073,-500.0,0.00017973,2]
[394949436,1764191439082,-161.55616057,0.00017973,2]
[394949437,1764191439092,-500.0,0.00017973,2]
[394949438,1764191439102,-500.0,0.00017973,2]
[394949439,1764191439112,-500.0,0.00017973,2]
[394949440,1764191439121,-298.00508969,0.00017973,2]
[394949441,1764191439131,-1680.0,0.00017989,2]
[394949442,1764191439140,-401.49353651,0.0001799,2]
[394949443,1764191439150,-401.49353651,0.0001799,2]
[394949444,1764191439160,-500.0,0.00017999,2]
[394949445,1764191439170,-500.0,0.00017999,2]
[394949446,1764191439179,-500.0,0.00017999,2]
[394949447,1764191439189,-500.0,0.00017999,2]
[394949448,1764191439198,-500.0,0.00017999,2]
[394949449,1764191439208,-500.0,0.00017999,2]
[394949450,1764191439218,-500.0,0.00017999,2]
[394949451,1764191439228,-500.0,0.00017999,2]
[394949452,1764191439238,-500.0,0.00017999,2]
[394949453,1764191439247,-500.0,0.00017999,2]
[394949454,1764191439257,-500.0,0.00017999,2]
[394949455,1764191439267,-500.0,0.00017999,2]
[394949456,1764191439276,-500.0,0.00017999,2]
[394949457,1764191439286,-500.0,0.00017999,2]
[394949458,1764191439295,-500.0,0.00017999,2]
[394949459,1764191439305,-500.0,0.00017999,2]
[394949460,1764191439314,-500.0,0.00017999,2]
[394949461,1764191439324,-500.0,0.00017999,2]
[394949462,1764191439334,-500.0,0.00017999,2]
[394949463,1764191439344,-195.66108833,0.00017999,2]
[394949464,1764191439353,-183.22754585,0.00017999,2]
[394949465,1764191439362,-297.47842436,0.00017999,2]
[394949466,1764191439372,-250.02703424,0.00017999,2]
[394949467,1764191439381,-500.0,0.00017999,2]
[394949468,1764191439390,-500.0,0.00017999,2]
[394949469,1764191439399,-500.0,0.00017999,2]
[394949470,1764191439408,-500.0,0.00017999,2]
[394949471,1764191439418,-500.0,0.00017999,2]
[394949472,1764191439431,-151.53241335,0.00017999,2]
[394949473,1764191439441,-733.0,0.00018,2]
[394949474,1764191439451,-158.13716325,0.00018,2]
[394949475,1764191439461,-208.94594,0.00018,2]
[394949476,1764191439471,-1000.0,0.00018,2]
[394949477,1764191439480,-741.60800904,0.00018,2]
[394949478,1764191439490,-1488492.61183954,0.00018,2]
[394949479,1764191439504,-455097.86829271,0.00018,2]
[394949481,1764191439777,-30050.29239659,0.00018,2]
[394949482,1764191439788,-8557.13116166,0.00018,2]
[394949483,1764191439983,-2334.24431784,0.00018,2]
[394949484,1764191440149,-20763.95933202,0.00018,2]
[394949485,1764191440259,-911.2582524,0.00018,2]
[394949486,1764191440273,-286.10899996,0.00018,2]
[394949497,1764191443725,-1182.12,0.00018,2]
[394949498,1764191443742,-2018.73099543,0.00018,2]
[394949500,1764191444801,-1466.63193534,0.00018,2]
[394949501,1764191444950,-104.55454573,0.00018,2]
[394949502,1764191444965,-2210.079186,0.00018,2]
[394949503,1764191445002,-1396.82961508,0.00018,2]
[394949504,1764191445015,-357.35912126,0.00018,2]
[394949506,1764191446059,-250.51979848,0.00018,2]
[394949507,1764191446135,-60567.27066417,0.00018,2]
[394949508,1764191446176,-16466.87334444,0.00018,2]
[394949509,1764191446186,-250.0,0.00018,2]
[394949510,1764191446196,-250.0,0.00018,2]